bitfinex/quotes_ETHUSD_20250625
["timestamp","ask_amount","ask_price","bid_price","bid_amount"]
[1750840563984,4.11208538,2431.9,2431.6,1.793]
[1750840564896,14.11193346,2432.0,2431.6,1.793]
[1750840565212,11.6007,2432.1,2431.7,4.11232239]
[1750840565388,10.0,2432.1,2431.6,5.90544199]
[1750840565593,4.11213017,2431.9,2431.6,1.793]
[1750840566215,5.63232182,2432.0,2431.6,1.793]
[1750840566388,6.60672654,2432.0,2431.6,1.793]
[1750840566586,4.11201314,2431.9,2431.6,1.793]
[1750840567707,14.11219227,2431.8,2431.6,1.793]
[1750840567904,14.11219227,2431.8,2430.5,4.11425141]
[1750840567905,10.0,2431.6,2430.5,4.11425141]
[1750840568222,1.6133,2431.3,2430.9,4.11367818]
[1750840569542,1.6133,2431.3,2431.0,4.11348419]
[1750840569849,1.6133,2431.3,2431.2,4.11319512]
[1750840570135,11.5288,2431.6,2431.3,4.11302172]
[1750840570337,1.5288,2431.6,2431.4,4.11278074]
[1750840570637,11.5656,2431.8,2431.4,4.11278074]
[1750840570850,14.32210553,2431.8,2431.4,4.11278074]
[1750840571011,14.32210553,2431.8,2431.3,4.11297367]
[1750840571210,11.5656,2431.8,2431.4,4.11275945]
[1750840572063,15.67779898,2431.8,2431.3,4.11294835]
[1750840572339,11.5656,2431.8,2431.3,4.11294835]
[1750840572739,15.67787415,2431.8,2431.3,4.11294835]
[1750840573254,15.67787415,2431.8,2431.1,5.90630598]
[1750840573255,4.11242981,2431.7,2431.2,4.11311219]
[1750840573409,6.77152052,2431.7,2431.2,4.11311219]
[1750840573613,2.65909071,2431.7,2431.3,4.11300176]
[1750840573817,15.67786964,2431.8,2431.3,4.11300176]
[1750840573818,11.5656,2431.8,2431.3,4.11302595]
[1750840574030,15.67786999,2431.8,2431.3,4.11302595]
[1750840576052,4.1123654,2431.7,2431.2,4.11310381]
[1750840576342,15.67779727,2431.8,2431.2,4.11318384]
[1750840576746,4.11234938,2431.7,2431.2,4.11318384]
[1750840577045,10.0,2431.5,2431.1,5.90627091]
[1750840577230,10.0,2431.5,2431.2,4.11319223]
[1750840578219,1.97901467,2431.6,2431.2,4.11319223]
[1750840579053,10.0,2431.5,2431.1,5.90626181]
[1750840579252,10.0,2431.5,2431.2,4.11318014]
[1750840579648,1.6515,2431.4,2431.1,1.793]
[1750840579844,1.6515,2431.4,2431.1,5.90628502]
[1750840580362,11.6515,2431.4,2430.8,4.11371272]
[1750840580545,4.11310263,2431.3,2430.7,5.90498882]
[1750840580856,4.11310263,2431.3,2430.2,4.11487234]
[1750840580857,1.6076,2431.0,2430.6,1.791]
[1750840581056,4.11372411,2430.9,2430.6,1.791]
[1750840581423,10.0,2430.9,2430.6,1.791]
[1750840582050,10.0,2430.9,2430.7,4.1139291]
[1750840582954,4.11303222,2431.3,2431.0,4.11342769]
[1750840582955,6.8,2431.3,2431.0,4.11342769]
[1750840583256,10.0,2431.1,2430.6,1.791]
[1750840583472,1.6076,2431.1,2430.8,4.11387063]
[1750840583688,4.11355529,2431.0,2430.5,4.11426381]
[1750840583969,4.11355529,2431.0,2430.6,4.11420128]
[1750840584166,10.0,2430.9,2430.5,4.11428812]
[1750840584461,1.5817,2430.8,2430.4,4.11445774]
[1750840584661,1.5817,2430.8,2430.3,4.11466377]
[1750840584662,1.5817,2430.7,2430.3,4.11456534]
[1750840584889,1.5817,2430.7,2430.4,4.1144216]
[1750840585829,1.5817,2430.7,2430.5,4.11434536]
[1750840586243,1.5817,2430.7,2430.4,4.11446394]
[1750840586754,1.5817,2430.7,2430.3,4.11470904]
[1750840587123,1.5817,2430.7,2430.2,0.55]
[1750840587329,14.11340077,2431.1,2430.2,4.11416817]
[1750840587528,1.5217,2431.0,2430.2,4.11416817]
[1750840587832,1.5217,2431.0,2430.5,4.11422786]
[1750840588029,10.0,2430.9,2430.5,4.11422786]
[1750840588259,1.5217,2431.0,2430.4,3.11052467]
[1750840589155,1.5217,2431.0,2430.6,4.1141084]
[1750840589362,1.5217,2431.0,2430.7,4.1140361]
[1750840589538,1.5217,2431.0,2430.6,4.1141175]
[1750840590471,10.0,2430.9,2430.0,5.90608737]
[1750840590631,14.1138012,2430.9,2430.4,4.11445783]
[1750840591274,10.0,2430.9,2430.5,4.11435628]
[1750840591767,1.5217,2431.0,2430.7,4.11395626]
[1750840591977,10.0,2430.9,2430.5,4.11429913]
[1750840592257,10.0,2430.9,2430.1,0.55]
[1750840592258,1.5217,2431.0,2430.6,3.79329335]
[1750840592561,1.5217,2431.0,2430.6,4.11408721]
[1750840593256,1.5217,2431.0,2430.5,4.11436114]
[1750840593257,1.5217,2431.0,2430.7,4.11404022]
[1750840593630,1.5217,2431.0,2430.4,4.11446689]
[1750840593631,10.0,2430.9,2430.4,4.11446689]
[1750840593961,10.0,2430.9,2430.5,4.11428463]
[1750840594960,4.11376269,2430.9,2430.5,4.11436641]
[1750840595565,10.0,2430.9,2430.6,4.11415315]
[1750840596762,1.5217,2431.0,2430.6,4.11415315]
[1750840597140,10.0,2430.9,2430.6,4.11415315]
[1750840598161,1.5217,2431.0,2430.6,4.11415315]
[1750840598364,10.0,2430.9,2430.4,4.11447628]
[1750840598675,10.0,2430.9,2430.6,4.11420275]
[1750840598834,10.0,2430.9,2430.5,4.11428302]
[1750840599458,1.5217,2431.0,2430.7,4.11402896]
[1750840599757,1.5217,2431.0,2430.6,4.11412633]
[1750840600351,1.5217,2431.0,2430.7,4.11402551]
[1750840601374,1.5217,2431.0,2430.5,4.11431218]
[1750840601375,10.0,2430.9,2430.5,4.11431969]
[1750840601665,14.11379096,2430.9,2430.4,4.11447921]
[1750840601874,10.0,2430.8,2430.4,4.11447921]
[1750840602450,10.0,2430.8,2430.4,4.11443935]
[1750840602672,10.0,2430.8,2430.5,4.11434776]
[1750840602870,10.0,2430.8,2430.1,0.55]
[1750840603041,10.0,2430.8,2430.3,0.55]
[1750840603343,10.0,2430.8,2430.5,4.11437462]
[1750840603870,4.11379096,2430.9,2430.0,1.791]
[1750840603871,1.5301,2430.6,2430.0,1.791]
[1750840604039,1.5301,2430.6,2429.8,4.11545619]
[1750840604242,4.1146327,2430.4,2429.9,4.11531404]
[1750840604442,11.5841,2430.3,2429.9,4.11531128]
[1750840604879,15.6988725,2430.3,2429.8,4.66548597]
[1750840605048,4.11498168,2430.2,2429.7,5.90764017]
[1750840605768,4.11505739,2430.1,2429.7,1.792]
[1750840606345,4.11525214,2430.0,2429.7,1.792]
[1750840606552,1.5306,2429.9,2429.7,1.792]
[1750840607370,1.5306,2429.9,2429.7,5.90767614]
[1750840607959,1.5306,2429.9,2429.7,1.792]
[1750840608356,1.5306,2429.9,2429.7,5.90757546]
[1750840608562,1.5306,2429.9,2429.7,1.792]
[1750840609072,1.5306,2429.9,2429.6,4.11589928]
[1750840609483,1.5306,2429.9,2429.7,4.11570945]
[1750840609773,10.0,2430.5,2429.4,0.55]
[1750840609941,11.6239,2430.1,2429.8,4.11556506]
[1750840610565,11.6239,2430.1,2429.7,4.11564922]
[1750840610770,15.73902894,2430.1,2429.6,4.1157995]
[1750840611187,11.6239,2430.1,2429.7,4.11570944]
[1750840611380,15.73896398,2430.1,2429.6,4.11583711]
[1750840611581,4.11526111,2430.0,2429.5,4.11598682]
[1750840611780,15.73904847,2430.1,2429.6,4.11589505]
[1750840611977,15.73904847,2430.1,2429.5,4.11605538]
[1750840612195,11.6239,2430.1,2429.4,0.55]
[1750840612345,1.6239,2430.1,2430.0,4.11522633]
[1750840612546,4.11411437,2430.7,2430.1,4.11492562]
[1750840612547,1.5968,2430.4,2430.1,4.11492562]
[1750840613268,1.5968,2430.4,2429.9,1.79]
[1750840613470,10.0,2430.2,2429.8,4.11544529]
[1750840615087,10.0,2430.2,2429.9,4.11538801]
[1750840615779,15.7113955,2430.4,2429.9,4.11538801]
[1750840615973,18.37387561,2430.4,2429.9,4.11538801]
[1750840616378,10.0,2430.2,2429.9,4.11538801]
[1750840616688,18.3738925,2430.4,2430.0,4.11522623]
[1750840617069,21.05828011,2430.4,2430.0,4.11522623]
[1750840617383,21.05828011,2430.4,2429.9,4.11531804]
[1750840617384,10.0,2430.2,2429.9,4.11531804]
[1750840617682,10.0,2430.2,2429.8,4.11552027]
[1750840618722,14.1149126,2430.2,2429.7,4.11565312]
[1750840618881,14.1149126,2430.2,2429.8,4.11555773]
[1750840619472,14.1149126,2430.2,2429.7,4.11569186]
[1750840619671,10.0,2430.2,2429.8,4.11553866]
[1750840619989,1.5918,2430.1,2429.7,4.11566014]
[1750840620857,5.70691488,2430.1,2429.6,4.11584122]
[1750840621292,5.70691488,2430.1,2429.5,4.11597337]
[1750840621293,1.5918,2430.1,2429.7,4.11572506]
[1750840621484,1.5918,2430.1,2429.8,4.11554827]
[1750840622996,4.11434298,2430.6,2429.4,0.55]
[1750840623293,1.516,2430.5,2430.3,4.11462465]
[1750840623494,4.11334399,2431.2,2430.1,0.55]
[1750840623495,1.516,2430.7,2430.1,0.55]
[1750840623704,1.516,2430.9,2430.4,4.11454904]
[1750840623896,1.516,2430.9,2430.6,4.1140921]
[1750840624076,1.516,2431.1,2430.6,4.1140921]
[1750840624276,1.516,2431.1,2430.5,4.11430455]
[1750840624486,1.01879856,2431.7,2430.7,0.55]
[1750840624487,1.516,2431.4,2430.7,0.55]
[1750840624797,1.516,2431.6,2430.9,0.55]
[1750840625091,1.516,2431.6,2431.2,4.11317763]
[1750840625292,2.07882595,2431.6,2430.8,0.55]
[1750840625594,2.07882595,2431.6,2430.9,4.11365787]
[1750840625786,10.0,2431.5,2431.0,4.1134061]
[1750840625988,6.19136038,2431.6,2431.0,4.1134061]
[1750840625989,2.07882595,2431.6,2431.1,4.11327106]
[1750840626181,2.07882595,2431.6,2431.2,4.11318739]
[1750840626381,2.07882595,2431.6,2431.1,4.11333845]
[1750840626382,2.07882595,2431.6,2431.1,4.1132911]
[1750840626776,2.07882595,2431.6,2430.8,0.55]
[1750840626777,2.07882595,2431.6,2431.0,4.1134722]
[1750840627506,2.07882595,2431.6,2431.2,4.11318682]
[1750840627800,1.516,2431.6,2431.2,4.11318682]
[1750840627969,1.516,2431.6,2431.1,4.11328121]
[1750840628369,1.516,2431.6,2431.2,4.11319133]
[1750840628713,1.516,2431.6,2431.0,4.11340855]
[1750840628897,1.516,2431.6,2431.2,4.11318042]
[1750840630202,1.516,2431.6,2431.3,4.11299515]
[1750840630688,1.516,2431.6,2431.2,4.11311138]
[1750840631295,1.516,2431.6,2431.3,4.11302118]
[1750840631683,1.516,2431.6,2430.8,0.55]
[1750840632001,1.516,2431.6,2431.2,4.1131797]
[1750840632002,10.0,2431.5,2431.2,4.1131797]
[1750840632205,1.516,2431.6,2431.2,4.1131797]
[1750840632897,1.516,2431.6,2431.3,4.1130156]
[1750840633105,1.516,2431.6,2431.2,4.11317877]
[1750840633474,1.516,2431.6,2431.3,4.1129947]
[1750840634070,1.516,2431.6,2431.2,4.11314775]
[1750840634595,1.516,2431.6,2431.3,4.11300751]
[1750840634797,1.516,2431.6,2431.2,4.11307634]
[1750840634997,11.516,2431.6,2431.3,4.11294217]
[1750840637516,1.516,2431.6,2431.4,4.11282518]
[1750840637687,1.516,2431.6,2431.3,4.11293077]
[1750840638718,1.516,2431.6,2431.4,4.11285378]
[1750840640419,1.516,2431.6,2431.3,4.11293314]
[1750840640917,1.516,2431.6,2431.4,4.11285643]
[1750840641698,1.516,2431.6,2431.5,4.11268764]
[1750840641920,1.516,2431.6,2431.4,4.11277933]
[1750840642112,1.516,2431.6,2431.3,4.10845158]
[1750840642310,1.516,2431.6,2431.4,4.11277933]
[1750840642510,18.18312282,2431.8,2431.5,4.11268764]
[1750840643330,24.97612282,2431.8,2431.5,4.11268764]
[1750840643632,18.18312282,2431.8,2431.5,4.11268764]
[1750840643997,24.97612282,2431.8,2431.5,4.11268764]
[1750840645213,27.06919703,2431.8,2431.5,4.11268764]
[1750840646721,27.06919703,2431.8,2431.4,4.11281151]
[1750840647109,10.0,2431.6,2431.5,4.11266656]
[1750840647421,10.0,2431.6,2431.4,4.11279611]
[1750840647717,10.0,2431.6,2431.5,4.11268764]
[1750840648101,10.0,2431.6,2431.4,4.11279317]
[1750840649700,10.0,2431.7,2431.5,4.11268764]
[1750840649906,10.0,2431.7,2431.4,4.11278301]
[1750840649907,16.792,2431.7,2431.4,4.11278301]
[1750840651921,10.0,2431.7,2431.4,4.11278301]
[1750840652101,16.791,2431.7,2431.4,4.11278301]
[1750840652428,16.791,2431.7,2431.1,0.55]
[1750840652622,10.68895766,2431.6,2431.1,4.11322411]
[1750840652815,6.57642282,2431.6,2431.2,4.11319372]
[1750840653016,6.57642282,2431.6,2431.3,4.11300648]
[1750840654132,10.68899092,2431.6,2431.2,4.11309903]
[1750840654424,6.57642282,2431.6,2431.2,4.11309903]
[1750840654824,6.57642282,2431.6,2431.3,4.11300057]
[1750840654825,6.791,2431.6,2431.3,4.11300057]
[1750840655902,6.791,2431.6,2431.2,4.11311108]
[1750840657325,10.0,2431.5,2431.3,4.11300681]
[1750840657509,10.0,2431.6,2431.3,4.11300681]
[1750840657910,10.0,2431.6,2431.4,4.11281493]
[1750840658326,10.0,2431.6,2431.2,4.11275989]
[1750840658534,10.0,2431.6,2431.3,4.11302595]
[1750840658755,16.79,2431.7,2431.4,4.11282887]
[1750840659028,20.90235996,2431.7,2431.3,4.11292993]
[1750840659198,20.90235996,2431.7,2431.2,0.55]
[1750840659402,4.11252898,2431.6,2431.2,4.11319095]
[1750840659603,4.11252898,2431.6,2431.1,4.66328854]
[1750840659836,4.11252898,2431.6,2431.2,4.1131661]
[1750840660042,20.90244026,2431.7,2431.2,4.1131661]
[1750840660244,24.22221886,2431.7,2431.2,4.1131661]
[1750840660749,4.11255644,2431.6,2431.1,4.11329944]
[1750840660951,8.3505,2431.5,2430.1,0.31233937]
[1750840661258,8.3505,2431.5,2430.8,4.11380075]
[1750840661259,1.5605,2431.2,2430.8,4.11380075]
[1750840661436,11.5605,2431.2,2430.5,0.55]
[1750840661621,15.67380965,2431.2,2430.7,4.11402391]
[1750840661820,11.5605,2431.2,2430.8,4.11386142]
[1750840663657,15.67370354,2431.2,2430.7,4.11391661]
[1750840663958,11.5605,2431.2,2430.8,4.11385929]
[1750840665358,11.5605,2431.2,2430.7,4.11397519]
[1750840665559,11.5605,2431.2,2430.9,4.11358824]
[1750840667580,11.5605,2431.2,2430.6,0.2337]
[1750840667874,10.0,2431.3,2431.0,4.11351575]
[1750840668379,10.0,2431.3,2430.7,0.55]
[1750840668665,10.0,2431.3,2431.0,4.11338623]
[1750840670264,10.0,2431.3,2431.0,4.11342886]
[1750840671434,10.0,2431.3,2431.0,4.11342112]
[1750840672047,10.0,2431.3,2430.6,4.11421048]
[1750840672263,10.0,2431.3,2431.1,4.1133591]
[1750840672467,1.6277,2431.5,2430.5,4.66436864]
[1750840672670,1.6277,2431.5,2431.2,4.11304514]
[1750840673050,1.6277,2431.5,2430.9,1.784]
[1750840673051,10.0,2431.4,2431.0,4.66338645]
[1750840673437,1.6277,2431.5,2431.1,4.11336087]
[1750840674366,15.7404128,2431.5,2431.0,4.66344634]
[1750840675083,4.11288711,2431.4,2431.0,4.11344634]
[1750840675786,9.06211971,2431.5,2431.0,4.11344634]
[1750840675957,4.94933546,2431.5,2431.1,4.11323254]
[1750840676162,5.74040128,2431.5,2431.0,4.11345758]
[1750840676986,4.11287913,2431.4,2431.0,4.11345758]
[1750840677286,4.11287913,2431.4,2430.9,4.11361542]
[1750840677785,4.11287913,2431.4,2430.9,4.11359207]
[1750840678485,4.11319779,2431.2,2430.4,4.11454904]
[1750840678670,4.11319779,2431.2,2430.3,10.69112847]
[1750840678671,4.11319779,2431.2,2430.7,4.11393175]
[1750840679077,4.1133946,2431.1,2430.6,6.44812852]
[1750840679274,1.5155,2430.9,2430.6,1.784]
[1750840680373,1.5155,2430.9,2430.6,5.8982085]
[1750840680563,1.5155,2430.9,2430.6,1.784]
[1750840680766,1.5155,2430.9,2430.8,4.11387197]
[1750840680966,1.5155,2430.9,2430.7,4.1139629]
[1750840681167,1.5155,2430.9,2430.8,4.11387197]
[1750840682263,1.5216,2431.1,2430.8,4.11387197]
[1750840682892,5.63505639,2431.1,2430.6,5.89814627]
[1750840683189,1.5216,2431.1,2430.7,4.11404105]
[1750840683973,1.5216,2431.1,2430.8,4.11380726]
[1750840685596,1.5216,2431.1,2430.8,4.113757]
[1750840686398,18.3681,2431.3,2430.9,4.11369157]
[1750840689499,1.5669,2430.9,2430.5,4.11429158]
[1750840689668,1.5669,2430.9,2430.6,4.11417963]
[1750840689872,1.5669,2430.9,2430.7,4.11397042]
[1750840690400,1.5669,2430.9,2430.6,4.11414543]
[1750840690789,1.5669,2430.9,2430.5,4.11428356]
[1750840691503,1.5669,2430.9,2430.7,4.11403031]
[1750840692398,11.6402,2431.2,2430.7,0.69241294]
[1750840692598,11.6402,2431.2,2430.8,4.11379407]
[1750840692897,1.6402,2431.2,2430.8,4.11377452]
[1750840694678,1.6402,2431.2,2430.9,4.11369494]
[1750840694871,14.11311194,2431.3,2430.9,4.11369494]
[1750840695793,15.6580332,2431.4,2430.9,4.11369494]
[1750840697097,15.6580332,2431.4,2430.5,4.66433681]
[1750840697098,1.5451,2431.4,2431.0,4.11336967]
[1750840697401,11.5297,2431.6,2431.2,4.11309745]
[1750840697905,10.0,2431.6,2431.2,4.11309745]
[1750840698102,10.0,2431.7,2431.3,4.11299974]
[1750840698677,5.72940655,2431.8,2431.3,4.11294885]
[1750840698879,10.0,2431.7,2431.3,4.11294885]
[1750840699705,10.0,2431.7,2431.2,4.11315184]
[1750840699706,14.1123693,2431.7,2431.2,4.11312174]
[1750840700211,14.1123693,2431.7,2431.3,4.11300784]
[1750840700376,14.1123693,2431.7,2431.2,4.11312115]
[1750840701378,14.11244256,2431.7,2431.2,4.11312115]
[1750840702709,14.11244256,2431.7,2431.3,4.11301721]
[1750840703101,14.11244256,2431.7,2431.2,4.11312491]
[1750840703502,14.11244256,2431.7,2431.3,4.11302011]
[1750840704112,10.0,2431.7,2431.3,4.11302011]
[1750840705218,14.11236777,2431.7,2431.3,4.11302011]
[1750840705417,10.0,2431.7,2431.3,4.11302011]
[1750840706508,14.11234965,2431.7,2431.2,4.11315699]
[1750840706814,4.1125195,2431.6,2430.9,4.11365885]
[1750840706982,5.70190085,2431.5,2431.1,4.11336325]
[1750840708323,5.70190085,2431.5,2431.0,5.89349749]
[1750840709317,1.5892,2431.5,2431.1,4.11332736]
[1750840709483,11.5892,2431.5,2431.2,4.1131227]
[1750840709680,1.5892,2431.5,2431.2,4.1131227]
[1750840709883,1.5892,2431.5,2431.2,4.11319512]
[1750840710106,1.5892,2431.5,2431.3,4.11302147]
[1750840710821,10.0,2431.6,2431.3,4.11302147]
[1750840711024,11.5248,2431.7,2431.3,4.11302147]
[1750840711901,10.0,2431.7,2431.3,4.11302147]
[1750840712109,16.76281102,2431.7,2431.2,4.11311779]
[1750840712417,4.11253301,2431.6,2431.2,4.11311779]
[1750840712639,4.11253301,2431.6,2431.1,4.66329477]
[1750840712841,4.11261626,2431.6,2431.0,1.78]
[1750840713053,5.61400159,2431.5,2431.0,5.89343316]
[1750840714006,4.11300905,2431.4,2430.7,0.55]
[1750840714210,1.6604,2431.2,2430.7,1.78]
[1750840714418,4.11343727,2431.1,2430.7,1.78]
[1750840715343,4.11354326,2431.0,2430.7,1.78]
[1750840716129,5.63451139,2430.9,2430.4,4.11450637]
[1750840716314,4.11395171,2430.8,2430.3,4.11464138]
[1750840716943,4.11404752,2430.7,2430.2,5.89479918]
[1750840717115,14.11393936,2430.8,2430.3,4.11469747]
[1750840717938,5.63449548,2430.9,2430.4,4.11452426]
[1750840718126,10.0,2430.8,2430.2,1.78]
[1750840718334,14.11399775,2430.8,2430.3,4.11462573]
[1750840719019,14.11399775,2430.8,2430.2,1.78]
[1750840719326,5.63445241,2430.9,2430.4,4.11450093]
[1750840719533,10.0,2430.8,2430.4,4.11450093]
[1750840721041,1.5207,2430.9,2430.5,4.11437402]
[1750840721743,10.0,2430.8,2430.4,4.11445526]
[1750840721941,11.6475,2431.1,2430.4,0.55]
[1750840722161,16.777,2431.1,2430.7,4.11390392]
[1750840722711,10.0,2431.1,2430.7,4.11390392]
[1750840722910,14.113366,2431.1,2430.7,4.11390392]
[1750840723224,14.113366,2431.1,2430.6,4.11413568]
[1750840723438,4.11353367,2431.0,2430.6,4.11413568]
[1750840723749,4.11353367,2431.0,2430.5,4.11431151]
[1750840723943,10.0,2430.8,2430.4,4.11446245]
[1750840725625,14.11387252,2430.8,2430.3,4.66470109]
[1750840726850,10.0,2430.8,2430.4,4.11453487]
[1750840727145,14.11389192,2430.8,2430.3,4.66469323]
[1750840727360,10.0,2430.8,2430.4,4.11450983]
[1750840727852,14.11391285,2430.8,2430.3,4.66462606]
[1750840728263,4.11406267,2430.7,2430.2,5.89480156]
[1750840728561,14.11392554,2430.8,2430.3,4.11462242]
[1750840728758,14.11396743,2430.8,2430.3,4.11468584]
[1750840729060,14.11396743,2430.8,2430.4,4.1145463]
[1750840729218,10.0,2430.8,2430.4,4.1145463]
[1750840729645,10.0,2430.8,2430.5,4.11437484]
[1750840729849,10.0,2430.8,2430.6,4.1140563]
[1750840730227,10.0,2430.8,2430.5,4.11427436]
[1750840730644,14.11398019,2430.8,2430.3,4.11461779]
[1750840730850,10.0,2430.8,2430.4,4.11453295]
[1750840731049,14.11390031,2430.8,2430.4,4.11453295]
[1750840731457,10.0,2430.8,2430.4,4.11453295]
[1750840731768,10.0,2430.8,2430.4,4.1144658]
[1750840732453,10.0,2430.8,2430.5,4.11432858]
[1750840735853,10.0,2430.8,2430.4,4.11446392]
[1750840737557,10.0,2430.8,2430.5,4.11432624]
[1750840737928,10.0,2430.8,2430.4,4.11445234]
[1750840738662,10.0,2430.8,2430.3,4.11464356]
[1750840738878,10.0,2430.8,2430.4,4.11442639]
[1750840739167,10.0,2430.8,2430.5,4.11436803]
[1750840740761,10.0,2430.8,2430.3,4.11461647]
[1750840741057,10.0,2430.8,2430.4,4.11442398]
[1750840741259,10.0,2430.8,2430.5,4.11436572]
[1750840741453,10.0,2430.8,2430.3,0.55]
[1750840741656,10.0,2430.8,2430.6,4.11413694]
[1750840742463,10.0,2430.8,2430.7,4.11404122]
[1750840742756,10.0,2430.8,2430.6,6.773]
[1750840742956,15.75134375,2430.8,2430.3,4.11463023]
[1750840743155,15.75134375,2430.8,2430.5,1.777]
[1750840743365,4.11404122,2430.7,2430.3,8.55]
[1750840743960,4.11404122,2430.7,2430.3,12.66469825]
[1750840744158,11.6033,2430.6,2430.1,8.55]
[1750840744453,1.6033,2430.6,2430.2,4.11478792]
[1750840745061,1.6033,2430.6,2430.2,4.11484165]
[1750840745232,1.6033,2430.6,2430.3,4.11459783]
[1750840745433,11.6033,2430.6,2430.2,4.11480315]
[1750840746259,15.7175214,2430.6,2430.2,4.11480315]
[1750840746760,4.11454816,2430.5,2430.1,1.777]
[1750840746929,1.6033,2430.4,2430.1,5.8920304]
[1750840747130,1.6033,2430.4,2430.2,4.11479479]
[1750840747529,1.6033,2430.4,2430.1,1.777]
[1750840748535,1.6033,2430.4,2430.2,4.11486766]
[1750840748754,1.6033,2430.4,2430.3,4.11471834]
[1750840749039,10.0,2430.5,2430.3,4.11471834]
[1750840749242,10.0,2430.5,2430.2,4.11479848]
[1750840749558,10.0,2430.5,2430.3,4.11469433]
[1750840750041,10.0,2430.5,2430.2,4.11481694]
[1750840751241,10.0,2430.5,2430.1,5.8919791]
[1750840751643,1.524,2430.4,2430.1,1.777]
[1750840751945,7.6138431,2430.4,2430.0,8.548]
[1750840752155,1.524,2430.4,2430.0,12.66321082]
[1750840752659,15.63855443,2430.4,2430.0,8.548]
[1750840752863,15.63855443,2430.4,2430.0,1.777]
[1750840753068,4.11479997,2430.3,2430.0,8.548]
[1750840753770,5.63862334,2430.4,2430.0,8.548]
[1750840754246,1.524,2430.4,2430.0,12.66318821]
[1750840754451,5.63855799,2430.4,2430.0,8.548]
[1750840754762,1.524,2430.4,2430.0,12.66322371]
[1750840755143,1.524,2430.4,2430.0,12.66322615]
[1750840755872,1.524,2430.4,2430.1,4.11505595]
[1750840756385,1.524,2430.4,2430.0,12.66313816]
[1750840756566,5.63855808,2430.4,2430.0,8.548]
[1750840756753,4.11472538,2430.3,2430.0,8.548]
[1750840756949,5.63861198,2430.4,2430.0,8.548]
[1750840757162,1.524,2430.4,2430.0,12.66321374]
[1750840757470,5.63856419,2430.4,2430.0,12.66321374]
[1750840757638,1.524,2430.4,2430.0,12.66321374]
[1750840758370,10.0,2430.5,2430.2,4.11485504]
[1750840758671,10.0,2430.5,2430.1,4.11492021]
[1750840759077,14.1143892,2430.5,2430.1,4.11492021]
[1750840759372,14.1143892,2430.5,2430.0,12.6631456]
[1750840760476,14.1143892,2430.5,2430.0,8.548]
[1750840760767,5.71434904,2430.4,2430.0,12.66322133]
[1750840760972,1.5998,2430.4,2430.1,4.11503454]
[1750840761153,10.0,2430.5,2430.1,4.11503454]
[1750840761352,10.0,2430.5,2430.2,4.11487185]
[1750840762478,1.601,2430.6,2430.2,4.11487185]
[1750840762641,5.61839716,2430.8,2430.3,6.77]
[1750840762847,10.0,2430.5,2430.3,6.77]
[1750840763898,4.11479657,2430.3,2430.0,1.773]
[1750840764039,1.5979,2430.2,2430.0,1.773]
[1750840764980,1.5979,2430.2,2430.0,5.88818723]
[1750840765185,1.6261,2430.5,2430.2,4.11480213]
[1750840765385,5.74050637,2430.5,2430.0,1.773]
[1750840765589,10.0,2430.4,2430.0,1.773]
[1750840765887,1.6261,2430.5,2430.2,4.11488346]
[1750840766083,5.73371437,2430.7,2430.2,10.88488346]
[1750840766873,4.11423032,2430.6,2430.2,6.77]
[1750840767277,10.0,2430.5,2430.2,6.77]
[1750840768692,10.0,2430.5,2430.2,10.88488118]
[1750840769086,10.0,2430.5,2430.2,6.77]
[1750840769268,10.0,2430.5,2430.1,4.11496628]
[1750840769472,10.0,2430.5,2430.3,6.769]
[1750840770487,4.11439843,2430.5,2430.3,6.769]
[1750840770864,10.0,2430.5,2430.3,6.769]
[1750840771498,10.0,2430.5,2430.1,4.11503891]
[1750840771792,10.0,2430.5,2430.2,8.542]
[1750840772698,10.0,2430.5,2430.2,12.6568709]
[1750840772897,10.0,2430.5,2430.2,8.542]
[1750840773994,14.11445454,2430.5,2430.2,8.542]
[1750840774300,14.11456145,2430.4,2430.3,6.768]
[1750840774794,11.6235,2430.4,2430.3,6.768]
[1750840775295,15.73804904,2430.4,2430.1,6.768]
[1750840775775,15.73804904,2430.4,2429.9,4.11529929]
[1750840776099,4.11480971,2430.3,2430.0,8.541]
[1750840776304,15.7381343,2430.4,2430.0,12.65620738]
[1750840776599,15.7381343,2430.4,2430.1,6.768]
[1750840776900,15.7381343,2430.4,2430.0,4.11520738]
[1750840777193,11.6235,2430.4,2430.1,6.768]
[1750840777566,4.11478845,2430.3,2430.1,6.768]
[1750840778084,4.11478845,2430.3,2429.8,4.1154841]
[1750840778285,10.0,2430.3,2429.9,4.11531797]
[1750840778596,4.11497287,2430.2,2429.9,6.768]
[1750840778912,1.6519,2430.1,2429.8,12.65655668]
[1750840779468,1.6519,2430.1,2429.9,4.11526745]
[1750840780497,1.6519,2430.1,2429.6,4.11578132]
[1750840780797,11.6519,2430.1,2429.7,4.11563497]
[1750840780970,15.76700703,2430.1,2429.6,5.8888157]
[1750840782302,11.6519,2430.1,2429.7,4.11564208]
[1750840783402,15.76696575,2430.1,2429.7,4.11564208]
[1750840783601,11.6519,2430.1,2429.7,4.11564208]
[1750840784405,15.76695819,2430.1,2429.6,1.773]
[1750840784706,1.6519,2430.1,2429.8,4.11553637]
[1750840786612,11.6406,2430.3,2429.8,6.767]
[1750840786924,1.6255,2430.9,2430.2,6.57642282]
[1750840787085,1.6255,2431.2,2430.8,4.1138706]
[1750840787280,1.6255,2431.2,2430.9,10.87966865]
[1750840787480,1.6255,2431.2,2431.0,4.11352893]
[1750840787699,1.5166,2431.4,2430.9,6.766]
[1750840787900,1.5166,2431.4,2431.0,4.11353352]
[1750840788119,1.5166,2431.4,2431.1,4.11328216]
[1750840788617,1.5166,2431.4,2431.1,4.00638216]
[1750840789518,1.6239,2431.6,2430.9,6.766]
[1750840789713,1.6239,2432.0,2431.1,10.68977254]
[1750840789923,5.72442257,2432.3,2431.7,4.11225109]
[1750840790123,10.0,2432.2,2431.8,12.65015678]